fUSD/lending_fUSD_20250115
["ID","MTS","AMOUNT","RATE_DAILY","PERIOD"]
[349041189,1736947878810,-300.0,0.00039,120]
[349041190,1736947878821,-210.0,0.00039,2]
[349041191,1736947878830,-336.39,0.00039041,2]
[349041192,1736947878840,-1256.6,0.00039066,120]
[349041193,1736947878850,-1000.0,0.000391,5]
[349041194,1736947878860,-295.51,0.000391,30]
[349041195,1736947878869,-3714.19,0.00039112,120]
[349041196,1736947878879,-5000.0,0.00039168,120]
[349041197,1736947878889,-151.011408,0.00039198,120]
[349041198,1736947878905,-1449.13897398,0.0003921,2]
[349041199,1736947878915,-13099.95,0.00039244,120]
[349041200,1736947878925,-5000.0,0.00039271,120]
[349041201,1736947878936,-1758.21,0.00039273,120]
[349041202,1736947878946,-5000.0,0.00039276,120]
[349041203,1736947878956,-1309.24,0.00039336,120]
[349041204,1736947878965,-259.03333333,0.00039342,120]
[349041205,1736947878975,-2184.94,0.00039385,120]
[349041206,1736947878986,-577.66239268,0.000394,30]
[349041207,1736947878996,-5000.0,0.0003944,120]
[349041208,1736947879006,-151.011408,0.00039498,120]
[349041209,1736947879015,-1000.0,0.00039499,120]
[349041210,1736947879025,-161.9,0.000395,120]
[349041211,1736947879035,-7759.97,0.000395,2]
[349041212,1736947879045,-7759.97,0.000395,2]
[349041213,1736947879056,-7759.97,0.000395,2]
[349041214,1736947879066,-5000.0,0.0003951,120]
[349041215,1736947879075,-4025.44,0.00039542,120]
[349041216,1736947879085,-2269.49,0.00039553,120]
[349041217,1736947879097,-500.0,0.00039588,120]
[349041218,1736947879107,-167.2,0.00039589,120]
[349041219,1736947879117,-274.833802,0.000396,30]
[349041220,1736947879127,-5000.0,0.00039616,120]
[349041221,1736947879136,-5000.0,0.0003962,120]
[349041222,1736947879150,-2543.11,0.00039627,120]
[349041223,1736947879160,-48966.89343021,0.0003969,120]
[349041224,1736947879170,-2500.0,0.000397,20]
[349041225,1736947879180,-26523.745523,0.000397,2]
[349041226,1736947879191,-179.14,0.000397,30]
[349041227,1736947879201,-159.6677621,0.000397,30]
[349041228,1736947879211,-159.6677621,0.000397,30]
[349041229,1736947879222,-159.6677621,0.000397,30]
[349041230,1736947879232,-159.6677621,0.000397,30]
[349041231,1736947879242,-159.6677621,0.000397,30]
[349041232,1736947879252,-159.6677621,0.000397,30]
[349041233,1736947879262,-159.6677621,0.000397,30]
[349041234,1736947879272,-159.66,0.000397,30]
[349041235,1736947879280,-202.13995392,0.000397,2]
[349041236,1736947879289,-1676.17,0.00039725,120]
[349041237,1736947879299,-5000.0,0.00039726,30]
[349041238,1736947879308,-5000.0,0.00039738,120]
[349041239,1736947879318,-151.011408,0.00039798,120]
[349041240,1736947879327,-3122442.77187899,0.000398,120]
[349041241,1736947879484,-6748.93179511,0.000398,120]
[349041242,1736947879496,-324.20700001,0.000398,120]
[349041243,1736947879507,-471.88957413,0.000398,120]
[349041244,1736947879519,-18714.09545843,0.000398,120]
[349041245,1736947879924,-500.0,0.00010273,2]
[349041246,1736947879934,-48.72783516,0.00019627,2]
[349041247,1736947880151,2000.0,0.00015249,120]
[349041248,1736947880194,-500.0,9.999e-05,2]
[349041249,1736947880204,-500.0,9.999e-05,2]
[349041250,1736947880214,-500.0,9.999e-05,2]
[349041251,1736947880223,-500.0,0.00010273,2]
[349041252,1736947880232,-116.18507844,0.00010273,2]
[349041253,1736947880255,-383.81492156,0.00010273,2]
[349041254,1736947880265,-500.0,0.00010547,2]
[349041255,1736947880274,-500.0,0.00010547,2]
[349041256,1736947880284,-309.24239532,0.00010547,2]
[349041257,1736947880300,-190.75760468,0.00010547,2]
[349041258,1736947880309,-617.23056782,0.00010821,2]
[349041259,1736947880319,-500.0,0.00010821,2]
[349041260,1736947880329,-500.0,0.00011095,2]
[349041261,1736947880339,-525.92848194,0.00011369,2]
[349041262,1736947880349,-500.0,0.00019626,2]
[349041263,1736947880359,-451.27216484,0.00019627,2]
[349041264,1736947880369,-500.0,0.000199,2]
[349041265,1736947880382,-336.29076173,0.00019901,2]
[349041266,1736947880394,-163.70923827,0.00019901,2]
[349041267,1736947880408,-500.0,0.00019962,2]
[349041268,1736947880417,-500.0,0.00020174,2]
[349041269,1736947880429,-500.0,0.00020175,2]
[349041270,1736947880438,-500.0,0.00020236,2]
[349041271,1736947880448,-500.0,0.00020448,2]
[349041272,1736947880459,-500.0,0.0002051,2]
[349041273,1736947880470,-500.0,0.00020722,2]
[349041274,1736947880479,-500.0,0.00020784,2]
[349041275,1736947880489,-500.0,0.00020996,2]
[349041276,1736947880498,-500.0,0.00021058,2]
[349041277,1736947880507,-500.0,0.0002127,2]
[349041278,1736947880516,-500.0,0.00021544,2]
[349041279,1736947880526,-500.0,0.00021818,2]
[349041280,1736947880535,-500.0,0.00022092,2]
[349041281,1736947880545,-500.0,0.00022366,2]
[349041282,1736947880554,-538.143,0.00023063,2]
[349041283,1736947880564,-500.003359,0.00035,7]
[349041284,1736947880574,-10777.98688434,0.000398,120]
[349041285,1736947880785,-500.0,9.999e-05,2]
[349041286,1736947880795,-500.0,9.999e-05,2]
[349041287,1736947880804,-454.12776214,9.999e-05,2]
[349041288,1736947880815,-45.87223786,9.999e-05,2]
[349041289,1736947880825,-500.0,9.999e-05,2]
[349041290,1736947880834,-300.28232872,9.999e-05,2]
[349041291,1736947880843,-500.0,0.00010273,2]
[349041292,1736947880853,-573.36,0.00010273,2]
[349041293,1736947880863,-500.0,0.00010547,2]
[349041294,1736947880873,-27.93877252,0.00018531,2]
[349041295,1736947880920,-579.75,0.00010273,2]
[349041296,1736947880929,-132.23095748,0.00018531,2]
[349041297,1736947880938,-160.16973,0.00018805,2]
[349041298,1736947880948,-500.0,0.00019078,2]
[349041299,1736947880958,-160.16973,0.00019079,2]
[349041300,1736947880967,-160.16973,0.00019353,2]
[349041301,1736947880977,-245.77236504,0.00019688,2]
[349041302,1736947880986,-500.0,0.00020174,2]
[349041303,1736947880996,-500.0,0.00020448,2]
[349041304,1736947881006,-500.0,0.00020449,2]
[349041305,1736947881015,-500.0,0.00020723,2]
[349041306,1736947881025,-500.0,0.00020997,2]
[349041307,1736947881035,-500.0,0.0002264,2]
[349041308,1736947881045,-500.0,0.00022914,2]
[349041309,1736947881054,-500.0,0.00023188,2]
[349041310,1736947881064,-500.0,0.00023462,2]
[349041311,1736947881074,-500.0,0.00023736,2]
[349041312,1736947881083,-500.0,0.0002401,2]
[349041313,1736947881095,-500.0,0.00024284,2]
[349041314,1736947881112,-500.0,0.00024558,2]
[349041315,1736947881122,-362.6,0.00024832,2]
[349041316,1736947881131,-151.71093503,0.00025212,2]
[349041317,1736947881141,-500.0,0.00031999,2]
[349041318,1736947881158,-5000.0,0.00031999,2]
[349041319,1736947881168,-500.0,0.00032273,2]
[349041320,1736947881178,-491.07045502,0.00032547,2]
[349041321,1736947881187,-500.003359,0.000354,7]
[349041322,1736947881196,-500.003359,0.00038,7]
[349041323,1736947881206,-114405.61732007,0.000398,120]
[349041324,1736947881218,-112127.55700001,0.000398,120]
[349041325,1736948518307,660.0,0.00023,120]
[349042028,1736949031776,-864.86,8.871e-05,2]
[349042029,1736949031785,-300.0,9.998e-05,2]
[349042030,1736949031794,-500.0,9.999e-05,2]
[349042031,1736949031804,-500.0,9.999e-05,2]
[349042032,1736949031813,-500.0,9.999e-05,2]
[349042033,1736949031822,-500.0,9.999e-05,2]
[349042034,1736949031831,-500.0,9.999e-05,2]
[349042035,1736949031840,-500.0,9.999e-05,2]
[349042036,1736949031849,-336.78,9.999e-05,2]
[349042037,1736949031858,-500.0,9.999e-05,2]
[349042038,1736949031867,-500.0,9.999e-05,2]
[349042039,1736949031876,-500.0,9.999e-05,2]
[349042040,1736949031884,-500.0,9.999e-05,2]
[349042041,1736949031893,-80.95999996,9.999e-05,2]
[349042042,1736949031903,-419.04000004,9.999e-05,2]
[349042043,1736949031912,-491.50587985,9.999e-05,2]
[349042044,1736949031921,-500.0,9.999e-05,2]
[349042045,1736949031930,-384.02596976,9.999e-05,2]
[349042046,1736949031941,-115.97403024,9.999e-05,2]
[349042047,1736949031950,-500.0,9.999e-05,2]
[349042048,1736949031959,-500.0,9.999e-05,2]
[349042049,1736949031968,-500.0,9.999e-05,2]
[349042050,1736949031976,-500.0,9.999e-05,2]
[349042051,1736949031985,-500.0,9.999e-05,2]
[349042052,1736949031993,-500.0,9.999e-05,2]
[349042053,1736949032001,-500.0,9.999e-05,2]
[349042054,1736949032014,-500.0,9.999e-05,2]
[349042055,1736949032023,-228.43587073,9.999e-05,2]
[349042056,1736949032034,-271.56412927,9.999e-05,2]
[349042057,1736949032043,-500.0,9.999e-05,2]
[349042058,1736949032052,-130.12041581,9.999e-05,2]
[349042059,1736949032064,-369.87958419,9.999e-05,2]
[349042060,1736949032073,-500.0,9.999e-05,2]
[349042061,1736949032082,-144.2605526,9.999e-05,2]
[349042062,1736949032094,-355.7394474,9.999e-05,2]
[349042063,1736949032103,-8.84655394,9.999e-05,2]
[349042064,1736949032142,-491.15344606,9.999e-05,2]
[349042065,1736949032151,-500.0,9.999e-05,2]
[349042066,1736949032161,-500.0,9.999e-05,2]
[349042067,1736949032170,-500.0,9.999e-05,2]
[349042068,1736949032184,-500.0,9.999e-05,2]
[349042069,1736949032193,-500.0,9.999e-05,2]
[349042070,1736949032202,-500.0,9.999e-05,2]
[349042071,1736949032212,-500.0,9.999e-05,2]
[349042072,1736949032223,-496.85055394,9.999e-05,2]
[349042073,1736949032234,-3.14944606,9.999e-05,2]
[349042074,1736949032243,-500.0,9.999e-05,2]
[349042075,1736949032257,-500.0,9.999e-05,2]
[349042076,1736949032268,-500.0,9.999e-05,2]
[349042077,1736949032278,-500.0,9.999e-05,2]
[349042079,1736949032287,-500.0,9.999e-05,2]
[349042081,1736949032297,-500.0,9.999e-05,2]
[349042083,1736949032306,-500.0,9.999e-05,2]
[349042085,1736949032315,-500.0,9.999e-05,2]
[349042087,1736949032324,-500.0,9.999e-05,2]
[349042089,1736949032334,-500.0,9.999e-05,2]
[349042091,1736949032344,-500.0,9.999e-05,2]
[349042093,1736949032353,-500.0,9.999e-05,2]
[349042095,1736949032363,-500.0,9.999e-05,2]
[349042096,1736949032372,-500.0,9.999e-05,2]
[349042099,1736949032381,-500.0,9.999e-05,2]
[349042100,1736949032391,-500.0,9.999e-05,2]
[349042102,1736949032402,-500.0,9.999e-05,2]
[349042104,1736949032411,-500.0,9.999e-05,2]
[349042106,1736949032421,-500.0,9.999e-05,2]
[349042108,1736949032431,-500.0,9.999e-05,2]
[349042110,1736949032440,-500.0,9.999e-05,2]
[349042112,1736949032450,-500.0,9.999e-05,2]
[349042114,1736949032459,-500.0,9.999e-05,2]
[349042116,1736949032469,-500.0,9.999e-05,2]
[349042118,1736949032478,-500.0,9.999e-05,2]
[349042121,1736949032487,-500.0,9.999e-05,2]
[349042124,1736949032497,-500.0,9.999e-05,2]
[349042127,1736949032509,-500.0,9.999e-05,2]
[349042130,1736949032519,-500.0,9.999e-05,2]
[349042133,1736949032528,-500.0,9.999e-05,2]
[349042135,1736949032538,-500.0,9.999e-05,2]
[349042137,1736949032547,-500.0,9.999e-05,2]
[349042139,1736949032556,-500.0,9.999e-05,2]
[349042141,1736949032566,-168.81051035,9.999e-05,2]
[349042143,1736949032575,-500.0,9.999e-05,2]
[349042145,1736949032586,-500.0,9.999e-05,2]
[349042147,1736949032595,-500.0,9.999e-05,2]
[349042149,1736949032604,-500.0,9.999e-05,2]
[349042151,1736949032613,-500.0,9.999e-05,2]
[349042153,1736949032622,-500.0,9.999e-05,2]
[349042155,1736949032631,-554.67015028,9.999e-05,2]
[349042157,1736949032641,-600.0,0.0001,2]
[349042159,1736949032650,-150.93,0.00010137,2]
[349042161,1736949032659,-156.34,0.00010137,2]
[349042163,1736949032669,-500.0,0.00010273,2]
[349042165,1736949032678,-500.0,0.00010273,2]
[349042167,1736949032688,-500.0,0.00010273,2]
[349042169,1736949032697,-500.0,0.00010273,2]
[349042171,1736949032706,-500.0,0.00010273,2]
[349042173,1736949032715,-505.19565234,0.00010273,2]
[349042175,1736949032725,-500.0,0.00010273,2]
[349042177,1736949032734,-500.0,0.00010273,2]
[349042179,1736949032743,-500.0,0.00010273,2]
[349042181,1736949032752,-500.0,0.00010273,2]
[349042182,1736949032765,-500.0,0.00010273,2]
[349042184,1736949032774,-500.0,0.00010273,2]
[349042186,1736949032783,-539.46333835,0.00010273,2]
[349042188,1736949032793,-500.0,0.00010273,2]
[349042190,1736949032802,-500.0,0.00010273,2]
[349042192,1736949032812,-500.0,0.00010273,2]
[349042194,1736949032821,-500.0,0.00010273,2]
[349042196,1736949032830,-500.0,0.00010273,2]
[349042198,1736949032839,-500.0,0.00010273,2]
[349042200,1736949032848,-500.0,0.00010273,2]
[349042202,1736949032857,-500.0,0.00010273,2]
[349042204,1736949032867,-500.0,0.00010273,2]
[349042206,1736949032876,-500.0,0.00010273,2]
[349042208,1736949032885,-500.0,0.00010273,2]
[349042210,1736949032895,-500.0,0.00010273,2]
[349042212,1736949032903,-500.0,0.00010273,2]
[349042213,1736949032912,-500.0,0.00010273,2]
[349042215,1736949032921,-500.0,0.00010273,2]
[349042217,1736949032931,-286.29320418,0.00010273,2]
[349042219,1736949032940,-500.0,0.00010273,2]
[349042221,1736949032950,-500.0,0.00010273,2]
[349042223,1736949032959,-500.0,0.00010273,2]
[349042224,1736949032968,-500.0,0.00010273,2]
[349042226,1736949032977,-500.0,0.00010273,2]
[349042228,1736949032986,-534.03933873,0.00010273,2]
[349042230,1736949032996,-500.0,0.00010273,2]
[349042232,1736949033007,-500.0,0.00010273,2]
[349042234,1736949033017,-500.0,0.00010273,2]
[349042236,1736949033027,-500.0,0.00010273,2]
[349042238,1736949033037,-500.0,0.00010273,2]
[349042240,1736949033047,-500.0,0.00010273,2]
[349042242,1736949033058,-500.0,0.00010273,2]
[349042244,1736949033068,-500.0,0.00010273,2]
[349042246,1736949033077,-500.0,0.00010273,2]
[349042248,1736949033087,-500.0,0.00010273,2]
[349042250,1736949033097,-500.0,0.00010273,2]
[349042252,1736949033107,-20113.0,0.00010345,2]
[349042253,1736949033117,-500.0,0.00010547,2]
[349042255,1736949033126,-500.0,0.00010547,2]
[349042257,1736949033136,-500.0,0.00010547,2]
[349042259,1736949033145,-500.0,0.00010547,2]
[349042261,1736949033155,-500.0,0.00010547,2]
[349042263,1736949033165,-500.0,0.00010547,2]
[349042265,1736949033175,-500.0,0.00010547,2]
[349042267,1736949033190,-500.0,0.00010547,2]
[349042269,1736949033200,-500.0,0.00010547,2]
[349042271,1736949033210,-500.0,0.00010547,2]
[349042273,1736949033219,-500.0,0.00010547,2]
[349042275,1736949033230,-500.0,0.00010547,2]
[349042277,1736949033239,-500.0,0.00010547,2]
[349042278,1736949033247,-500.0,0.00010547,2]
[349042280,1736949033261,-500.0,0.00010547,2]
[349042282,1736949033270,-500.0,0.00010547,2]
[349042284,1736949033281,-500.0,0.00010547,2]
[349042286,1736949033291,-500.0,0.00010547,2]
[349042288,1736949033301,-500.0,0.00010547,2]
[349042290,1736949033311,-500.0,0.00010547,2]
[349042292,1736949033320,-193.91691621,0.00010547,2]
[349042294,1736949033330,-524.23,0.00010579,2]
[349042296,1736949033340,-1070.28,0.00010666,2]
[349042298,1736949033350,-893.55,0.00010666,2]
[349042300,1736949033359,-500.0,0.00010821,2]
[349042302,1736949033369,-500.0,0.00010821,2]
[349042304,1736949033379,-500.0,0.00010821,2]
[349042306,1736949033388,-500.0,0.00010821,2]
[349042308,1736949033399,-500.0,0.00010821,2]
[349042310,1736949033408,-500.0,0.00010821,2]
[349042312,1736949033417,-500.0,0.00010821,2]
[349042314,1736949033427,-500.0,0.00010821,2]
[349042316,1736949033436,-500.0,0.00010821,2]
[349042318,1736949033446,-500.0,0.00010821,2]
[349042320,1736949033456,-500.0,0.00010821,2]
[349042322,1736949033466,-328.30539019,0.00010821,2]
[349042324,1736949033477,-500.0,0.00010821,2]
[349042326,1736949033487,-500.0,0.00010821,2]
[349042328,1736949033496,-200.0,0.00010887,2]
[349042330,1736949033510,-1431.25117757,0.000109,2]
[349042332,1736949033522,-2736.75,0.00010959,2]
[349042334,1736949033532,-150.0,0.00010959,2]
[349042336,1736949033544,-167.33989455,0.00010995,2]
[349042338,1736949033554,-363.0,0.00010998,2]
[349042340,1736949033564,-274.72,0.00011074,2]
[349042342,1736949033574,-46002.07206504,0.00011099,2]
[349042344,1736949033584,-864.86,0.00011135,2]
[349042346,1736949033593,-250.0,0.00011174,2]
[349042348,1736949033602,-1283.83,0.00011361,2]
[349042350,1736949033612,-250.0,0.00011745,2]
[349042352,1736949033622,-170.13,0.00011774,2]
[349042354,1736949033632,-1125.84,0.00011774,2]
[349042356,1736949033641,-276.79,0.00011803,2]
[349042358,1736949033650,-23900.0,0.00011917,2]
[349042360,1736949033660,-3366.99,0.00011945,2]
[349042362,1736949033669,-893.55,0.00012,2]
[349042364,1736949033679,-600.0,0.00012,3]
[349042366,1736949033688,-1431.25117755,0.00012417,2]
[349042368,1736949033697,-28009.913439,0.00013232,2]
[349042370,1736949033711,-282.7449454,0.00013232,2]
[349042372,1736949033723,-310.48041707,0.00013232,2]
[349042374,1736949033734,-10050.63934127,0.00013232,2]
[349042377,1736949033749,-7348.29392224,0.00013232,2]
[349042379,1736949033764,-893.55,0.00013333,2]
[349042381,1736949033774,-864.86,0.00013399,2]
[349042383,1736949033784,-1431.25117755,0.00013934,2]
[349042385,1736949033794,-8297.77,0.00013943,2]
[349042387,1736949033804,-1500.0,0.00013962,2]
[349042389,1736949033813,-1729.36,0.0001406,2]
[349042391,1736949033823,-166.36,0.00014384,2]
[349042393,1736949033832,-893.55,0.00014666,2]
[349042395,1736949033843,-353.59882881,0.00014741,2]
[349042397,1736949033853,-1431.25117755,0.00015452,2]
[349042399,1736949033864,-864.86,0.00015662,2]
[349042401,1736949033873,-893.55,0.00015999,2]
[349042403,1736949033884,-250.0,0.00016119,2]
[349042405,1736949033893,-150.0,0.00016438,2]
[349042406,1736949033903,-150.0,0.00016438,2]
[349042408,1736949033917,-2458.504,0.00016556,2]
[349042410,1736949033927,-153.339,0.00016556,2]
[349042412,1736949033938,-46002.07206498,0.00016566,2]
[349042414,1736949033948,-2966.89473386,0.00016612,2]
[349042416,1736949033958,-150.0,0.00016712,2]
[349042418,1736949033969,-150.0,0.00016712,2]
[349042420,1736949033979,-1431.25117755,0.00016969,2]
[349042422,1736949033990,-872.0,0.00017095,2]
[349042424,1736949034000,-200.0,0.00017455,2]
[349042426,1736949034014,-158.44251439,0.000179,2]
[349042428,1736949034024,-158.44251436,0.000179,2]
[349042430,1736949034034,-158.44251436,0.000179,2]
[349042432,1736949034043,-158.44251436,0.000179,2]
[349042434,1736949034053,-864.86,0.00017926,2]
[349042436,1736949034062,-219.99,0.00018,2]
[349042438,1736949034072,-158.44251436,0.00018022,2]
[349042440,1736949034081,-1200.0,0.00018082,2]
[349042442,1736949034091,-1431.25117755,0.00018486,2]
[349042444,1736949034101,-500.0,0.00018531,2]
[349042446,1736949034111,-500.0,0.00018531,2]
[349042448,1736949034120,-500.0,0.00018531,2]
[349042450,1736949034130,-500.0,0.00018531,2]
[349042452,1736949034139,-500.0,0.00018531,2]
[349042454,1736949034148,-500.0,0.00018531,2]
[349042456,1736949034158,-500.0,0.00018531,2]
[349042458,1736949034167,-500.0,0.00018531,2]
[349042460,1736949034176,-500.0,0.00018531,2]
[349042462,1736949034186,-500.0,0.00018531,2]
[349042464,1736949034199,-500.0,0.00018531,2]
[349042466,1736949034210,-1000.0,0.00018531,2]
[349042467,1736949034220,-500.0,0.00018531,2]
[349042469,1736949034230,-500.0,0.00018531,2]
[349042471,1736949034241,-500.0,0.00018531,2]
[349042473,1736949034251,-500.0,0.00018531,2]
[349042475,1736949034263,-1200.0,0.00018751,2]
[349042477,1736949034274,-500.0,0.00018805,2]
[349042479,1736949034285,-500.0,0.00018805,2]
[349042481,1736949034294,-500.0,0.00018805,2]
[349042483,1736949034304,-500.0,0.00018805,2]
[349042485,1736949034314,-500.0,0.00018805,2]
[349042487,1736949034324,-491.30130162,0.00018805,2]
[349042489,1736949034336,-8.69869838,0.00018805,2]
[349042491,1736949034345,-500.0,0.00018805,2]
[349042493,1736949034354,-494.43946031,0.00018805,2]
[349042495,1736949034365,-5.56053969,0.00018805,2]
[349042497,1736949034375,-500.0,0.00018805,2]
[349042499,1736949034385,-500.0,0.00018805,2]
[349042501,1736949034395,-305.33697753,0.00018805,2]
[349042504,1736949034409,-194.66302247,0.00018805,2]
[349042506,1736949034418,-991.17382753,0.00018805,2]
[349042508,1736949034430,-8.82617247,0.00018805,2]
[349042510,1736949034440,-298.04682753,0.00018805,2]
[349042512,1736949034451,-201.95317247,0.00018805,2]
[349042514,1736949034460,-500.0,0.00018805,2]
[349042516,1736949034470,-7.72030629,0.00018805,2]
[349042518,1736949034481,-402.67870847,0.00018805,2]
[349042520,1736949034493,-89.60098524,0.00018805,2]
[349042522,1736949034503,-500.0,0.00018805,2]
[349042524,1736949034515,-500.0,0.00019079,2]
[349042526,1736949034524,-500.0,0.00019079,2]
[349042528,1736949034533,-500.0,0.00019079,2]
[349042530,1736949034544,-500.0,0.00019079,2]
[349042532,1736949034553,-500.0,0.00019079,2]
[349042534,1736949034562,-500.0,0.00019079,2]
[349042536,1736949034572,-500.0,0.00019079,2]
[349042538,1736949034582,-500.0,0.00019079,2]
[349042540,1736949034592,-250.89901476,0.00019079,2]
[349042550,1736949034754,-397.45098524,0.00019079,2]
[349042552,1736949034769,-500.0,0.00019079,2]
[349042554,1736949034779,-500.0,0.00019079,2]
[349042556,1736949034789,-1000.0,0.00019079,2]
[349042558,1736949034798,-500.0,0.00019079,2]
[349042560,1736949034807,-500.0,0.00019079,2]
[349042562,1736949034817,-500.0,0.00019079,2]
[349042564,1736949034826,-633.71,0.00019079,2]
[349042566,1736949034835,-150.0,0.00019116,2]
[349042568,1736949034845,-150.0,0.00019166,2]
[349042570,1736949034854,-156.27,0.00019178,2]
[349042572,1736949034864,-2966.89473381,0.000192,2]
[349042574,1736949034874,-2293.94947599,0.00019225,2]
[349042576,1736949034886,-258.40836063,0.00019225,2]
[349042578,1736949034896,-6920.4649,0.00019252,2]
[349042580,1736949034906,-150.0,0.00019254,2]
[349042582,1736949034915,-500.0,0.00019353,2]
[349042584,1736949034924,-500.0,0.00019353,2]
[349042586,1736949034934,-500.0,0.00019353,2]
[349042588,1736949034943,-500.0,0.00019353,2]
[349042590,1736949034953,-500.0,0.00019353,2]
[349042592,1736949034962,-2.36116143,0.00019353,2]
[349042594,1736949034973,-557.18883857,0.00019353,2]
[349042596,1736949034982,-500.0,0.00019353,2]
[349042598,1736949034992,-500.0,0.00019353,2]
[349042600,1736949035002,-500.0,0.00019353,2]
[349042602,1736949035014,-1000.0,0.00019353,2]
[349042604,1736949035023,-500.0,0.00019353,2]
[349042606,1736949035033,-500.0,0.00019353,2]
[349042608,1736949035043,-500.0,0.00019353,2]
[349042610,1736949035052,-1200.0,0.0001942,2]
[349042612,1736949035062,-150.0,0.00019516,2]
[349042614,1736949035071,-500.0,0.00019627,2]
[349042616,1736949035080,-500.0,0.00019627,2]
[349042618,1736949035089,-500.0,0.00019627,2]
[349042620,1736949035098,-500.0,0.00019627,2]
[349042622,1736949035107,-436.87,0.00019627,2]
[349042624,1736949035116,-500.0,0.00019627,2]
[349042626,1736949035125,-500.0,0.00019627,2]
[349042628,1736949035134,-500.0,0.00019627,2]
[349042630,1736949035143,-500.0,0.00019627,2]
[349042632,1736949035154,-500.0,0.00019627,2]
[349042634,1736949035164,-150.0,0.00019675,2]
[349042636,1736949035173,-1729.36,0.00019684,2]
[349042638,1736949035183,-150.0,0.00019686,2]
[349042640,1736949035192,-500.0,0.00019688,2]
[349042642,1736949035202,-500.0,0.00019688,2]
[349042644,1736949035211,-500.0,0.00019688,2]
[349042646,1736949035222,-500.0,0.00019688,2]
[349042648,1736949035232,-500.0,0.00019688,2]
[349042650,1736949035242,-500.0,0.00019688,2]
[349042652,1736949035251,-500.0,0.00019688,2]
[349042654,1736949035263,-500.0,0.00019688,2]
[349042656,1736949035272,-500.0,0.00019688,2]
[349042658,1736949035281,-604.15178664,0.00019688,2]
[349042660,1736949035290,-500.0,0.00019688,2]
[349042662,1736949035299,-500.26081299,0.00019688,2]
[349042663,1736949035309,-264.94621396,0.00019688,2]
[349042665,1736949035318,-500.0,0.00019688,2]
[349042667,1736949035327,-440.93012697,0.00019688,2]
[349042669,1736949035337,-500.0,0.00019688,2]
[349042671,1736949035346,-500.0,0.00019688,2]
[349042673,1736949035354,-500.0,0.00019688,2]
[349042675,1736949035366,-500.0,0.00019688,2]
[349042677,1736949035374,-500.0,0.00019688,2]
[349042678,1736949035382,-500.0,0.00019688,2]
[349042679,1736949035391,-500.0,0.00019688,2]
[349042680,1736949035400,-500.0,0.00019688,2]
[349042681,1736949035410,-500.0,0.00019688,2]
[349042682,1736949035419,-500.0,0.00019688,2]
[349042683,1736949035429,-500.0,0.00019688,2]
[349042684,1736949035439,-500.0,0.00019688,2]
[349042685,1736949035448,-500.0,0.00019688,2]
[349042686,1736949035458,-300.0,0.00019688,2]
[349042687,1736949035467,-500.0,0.00019688,2]
[349042688,1736949035477,-500.0,0.00019688,2]
[349042689,1736949035486,-500.0,0.00019688,2]
[349042690,1736949035495,-500.0,0.00019688,2]
[349042691,1736949035506,-500.0,0.00019688,2]
[349042692,1736949035518,-500.0,0.00019688,2]
[349042693,1736949035528,-500.0,0.00019688,2]